bitfinex/quotes_SOLUSD_20250822
["timestamp","ask_amount","ask_price","bid_price","bid_amount"]
[1755843655739,0.06,184.27,184.26,16.05542615]
[1755843657052,0.06,184.27,184.26,15.77110301]
[1755843657256,0.57,184.27,184.26,13.59559401]
[1755843658078,0.06,184.27,184.26,13.59559401]
[1755843658678,0.06,184.27,184.26,16.46145801]
[1755843658852,0.06,184.27,184.26,16.74578115]
[1755843659749,0.06,184.27,184.26,15.77145801]
[1755843659965,0.06,184.27,184.26,13.59559401]
[1755843660349,0.57,184.27,184.26,13.59559401]
[1755843660755,0.57,184.27,184.23,0.03]
[1755843661065,26.0,184.26,184.23,0.03]
[1755843661275,26.0,184.26,184.23,13.62559401]
[1755843661474,0.51,184.25,184.23,13.62559401]
[1755843661650,0.51,184.25,184.23,0.03]
[1755843661850,17.81278709,184.25,184.23,0.03]
[1755843662056,0.51,184.24,184.23,0.03]
[1755843663281,26.0,184.25,184.23,0.03]
[1755843663582,14.195594,184.27,184.23,0.03]
[1755843664085,0.51,184.26,184.23,0.03]
[1755843667891,39.685594,184.27,184.23,0.03]
[1755843668178,40.195594,184.27,184.23,0.03]
[1755843668560,39.685594,184.27,184.23,0.03]
[1755843668760,0.51,184.26,184.23,0.03]
[1755843670280,39.685594,184.27,184.23,0.03]
[1755843670481,13.685594,184.27,184.24,0.69]
[1755843670681,0.06,184.27,184.24,0.69]
[1755843671074,4.846034,184.27,184.24,0.69]
[1755843671396,4.846034,184.27,184.23,0.03]
[1755843671766,4.846034,184.27,184.24,13.59559401]
[1755843671969,4.846034,184.27,184.23,0.03]
[1755843672283,0.51,184.26,184.23,0.03]
[1755843672660,0.51,184.25,184.23,0.03]
[1755843672863,4.846034,184.27,184.23,0.03]
[1755843673069,0.51,184.26,184.23,0.03]
[1755843673678,0.57,184.26,184.23,0.03]
[1755843674787,0.06,184.26,184.23,0.03]
[1755843676005,0.57,184.26,184.23,0.03]
[1755843676365,0.06,184.26,184.23,0.03]
[1755843678588,0.06,184.26,184.24,13.59559401]
[1755843678887,0.06,184.26,184.25,14.25559401]
[1755843681078,0.06,184.26,184.25,13.59559401]
[1755843681893,0.06,184.26,184.25,14.25559401]
[1755843683100,0.06,184.26,184.25,13.59559401]
[1755843683101,0.57,184.26,184.25,13.59559401]
[1755843683792,0.06,184.26,184.25,13.59559401]
[1755843686892,0.06,184.26,184.25,14.25559401]
[1755843689792,0.06,184.26,184.25,13.59559401]
[1755843690915,0.57,184.26,184.25,13.59559401]
[1755843691081,0.06,184.26,184.25,13.59559401]
[1755843694706,0.06,184.26,184.25,14.25559401]
[1755843694907,0.06,184.26,184.25,13.59559401]
[1755843695091,0.06,184.26,184.25,14.25559401]
[1755843706720,0.06,184.26,184.25,13.59559401]
[1755843709207,0.06,184.26,184.25,14.25559401]
[1755843711716,0.06,184.26,184.25,17.3167849]
[1755843712052,0.06,184.26,184.25,14.25559401]
[1755843712407,0.06,184.26,184.25,17.3167849]
[1755843712614,0.06,184.26,184.25,14.25559401]
[1755843712820,0.06,184.26,184.25,13.59559401]
[1755843713758,0.06,184.26,184.25,14.25559401]
[1755843717623,26.57,184.26,184.25,13.59559401]
[1755843718346,0.57,184.26,184.23,0.03]
[1755843718551,0.51,184.25,184.23,0.03]
[1755843718962,31.997114,184.24,184.23,0.03]
[1755843721543,31.997114,184.24,184.23,0.69]
[1755843721544,31.487114,184.24,184.23,0.69]
[1755843721771,26.0,184.24,184.23,0.69]
[1755843722471,26.0,184.24,184.23,14.28559401]
[1755843722675,13.595594,184.25,184.24,13.59559401]
[1755843722855,26.0,184.25,184.24,13.59559401]
[1755843723059,13.655594,184.26,184.24,0.66]
[1755843723247,13.655594,184.26,184.23,0.03]
[1755843723248,13.655594,184.26,184.25,14.25559401]
[1755843723442,0.06,184.26,184.25,14.25559401]
[1755843726874,0.06,184.26,184.25,13.59559401]
[1755843727962,2.236337,184.26,184.25,13.59559401]
[1755843729977,2.236337,184.26,184.25,14.25559401]
[1755843730285,0.06,184.26,184.25,14.25559401]
[1755843733354,0.06,184.26,184.25,19.03811795]
[1755843735072,0.06,184.26,184.25,14.25559401]
[1755843736878,0.06,184.26,184.25,13.59559401]
[1755843738172,2.29622,184.26,184.25,13.59559401]
[1755843738962,2.80622,184.26,184.25,13.59559401]
[1755843739882,2.29622,184.26,184.25,13.59559401]
[1755843741975,8.23333386,184.26,184.25,13.59559401]
[1755843742583,8.23333386,184.26,184.23,0.03]
[1755843742765,7.72333386,184.26,184.23,0.03]
[1755843743093,0.51,184.25,184.23,0.03]
[1755843744087,13.625594,184.24,184.23,0.03]
[1755843746985,13.625594,184.24,184.23,14.28559401]
[1755843749180,13.625594,184.24,184.23,13.62559401]
[1755843749686,13.625594,184.24,184.23,14.28559401]
[1755843749990,13.625594,184.24,184.23,13.62559401]
[1755843751282,13.625594,184.24,184.23,14.28559401]
[1755843753371,13.625594,184.24,184.23,13.62559401]
[1755843755871,13.625594,184.24,184.23,14.28559401]
[1755843762814,13.625594,184.24,184.23,19.06811795]
[1755843762980,0.06,184.26,184.24,13.59559401]
[1755843763182,0.06,184.26,184.24,14.25559401]
[1755843763377,13.685594,184.26,184.25,14.25559401]
[1755843763985,13.685594,184.26,184.25,19.03811795]
[1755843763986,0.06,184.26,184.25,19.03811795]
[1755843765418,0.06,184.26,184.25,19.03756784]
[1755843767818,2.295983,184.26,184.25,19.03756784]
[1755843768620,0.06,184.26,184.25,19.03756784]
[1755843769497,0.06,184.26,184.25,14.25559401]
[1755843769714,0.06,184.26,184.25,19.03756784]
[1755843770107,0.06,184.26,184.25,24.46497625]
[1755843770414,0.06,184.26,184.25,24.74929939]
[1755843773106,0.06,184.26,184.25,19.96732556]
[1755843773308,0.06,184.26,184.25,24.74929939]
[1755843774005,0.06,184.26,184.25,19.32189098]
[1755843775994,0.06,184.26,184.25,14.53991715]
[1755843776217,0.06,184.26,184.25,19.03756784]
[1755843776417,0.06,184.26,184.25,13.59559401]
[1755843777318,2.295746,184.26,184.25,13.59559401]
[1755843777519,2.295746,184.26,184.25,14.28559401]
[1755843777822,0.06,184.26,184.25,14.28559401]
[1755843778713,0.06,184.26,184.25,19.35189098]
[1755843780097,0.06,184.26,184.25,24.77929939]
[1755843780418,0.06,184.26,184.25,19.35189098]
[1755843780923,0.06,184.26,184.25,14.56991715]
[1755843781104,0.06,184.26,184.25,19.35189098]
[1755843781306,0.06,184.26,184.25,14.56991715]
[1755843782006,0.06,184.26,184.25,13.59559401]
[1755843782316,0.06,184.26,184.25,14.28559401]
[1755843783126,0.06,184.26,184.25,19.06756784]
[1755843784209,0.06,184.26,184.25,24.49497625]
[1755843784532,0.06,184.26,184.25,24.77929939]
[1755843785903,0.06,184.26,184.25,66.81929939]
[1755843786919,0.06,184.27,184.26,13.87991715]
[1755843787221,0.06,184.27,184.26,19.35189098]
[1755843788222,0.06,184.27,184.26,24.77900484]
[1755843789026,0.06,184.29,184.26,24.77900484]
[1755843789208,0.06,184.29,184.28,18.66189098]
[1755843789404,0.06,184.29,184.28,60.70189098]
[1755843789823,0.06,184.29,184.28,61.39189098]
[1755843790211,0.06,184.29,184.28,66.81841583]
[1755843790608,0.06,184.29,184.28,55.91991715]
[1755843790810,0.06,184.29,184.28,66.81841583]
[1755843792433,0.06,184.29,184.28,55.91991715]
[1755843792633,0.06,184.29,184.28,13.73775558]
[1755843792936,0.06,184.29,184.28,55.91991715]
[1755843793309,0.06,184.29,184.28,61.39189098]
[1755843793528,0.06,184.29,184.28,66.81841583]
[1755843799254,0.06,184.29,184.28,62.036442]
[1755843799447,0.06,184.29,184.28,66.81841583]
[1755843802460,0.06,184.3,184.29,13.87991715]
[1755843802642,0.06,184.3,184.29,19.32189098]
[1755843804559,0.06,184.3,184.29,19.96614754]
[1755843804763,0.06,184.3,184.29,24.74812137]
[1755843809774,0.06,184.33,184.29,69.09567119]
[1755843809951,0.06,184.33,184.32,9.8482708]
[1755843810150,0.06,184.33,184.32,65.46386481]
[1755843810361,0.06,184.33,184.32,66.12386481]
[1755843810651,0.06,184.33,184.32,68.29830981]
[1755843811365,0.06,184.33,184.32,60.39756784]
[1755843811571,0.06,184.33,184.32,60.68189098]
[1755843811771,0.06,184.33,184.32,66.1072382]
[1755843811981,0.06,184.33,184.32,60.53972941]
[1755843812188,0.06,184.33,184.32,60.68189098]
[1755843812476,0.57,184.33,184.32,18.37756784]
[1755843812678,0.06,184.33,184.32,55.61559401]
[1755843812860,0.06,184.33,184.32,60.53972941]
[1755843813258,0.06,184.33,184.32,60.68189098]
[1755843814752,0.06,184.33,184.32,55.89991715]
[1755843814952,0.06,184.33,184.32,60.68189098]
[1755843815667,0.06,184.33,184.32,55.89991715]
[1755843815973,0.06,184.33,184.32,60.68189098]
[1755843816480,0.06,184.33,184.32,66.1072382]
[1755843816996,0.06,184.36,184.33,13.87991715]
[1755843817283,0.06,184.36,184.33,19.32189098]
[1755843817955,0.06,184.36,184.33,24.74694387]
[1755843821175,0.06,184.37,184.33,38.3095761]
[1755843821379,0.06,184.37,184.36,18.66189098]
[1755843821679,0.06,184.37,184.36,60.66189098]
[1755843822176,0.06,184.37,184.36,66.74606108]
[1755843823075,0.06,184.37,184.36,66.08606108]
[1755843823465,0.06,184.37,184.36,61.30408725]
[1755843823674,0.06,184.37,184.36,66.08606108]
[1755843823864,0.06,184.37,184.36,60.66189098]
[1755843824566,0.06,184.37,184.36,66.08606108]
[1755843827066,0.06,184.37,184.36,66.76606108]
[1755843828486,0.06,184.37,184.36,13.59559401]
[1755843828678,0.06,184.37,184.36,60.37756784]
[1755843828873,0.06,184.37,184.36,60.66189098]
[1755843829297,0.06,184.37,184.36,61.34189098]
[1755843831502,0.06,184.37,184.36,55.87991715]
[1755843831788,0.06,184.37,184.36,60.66189098]
[1755843832681,0.06,184.37,184.36,55.87991715]
[1755843832884,0.06,184.37,184.36,60.66189098]
[1755843834496,0.06,184.37,184.36,58.93627464]
[1755843834970,0.06,184.37,184.36,59.61627464]
[1755843837096,0.06,184.37,184.36,56.55991715]
[1755843837296,0.06,184.37,184.36,58.93627464]
[1755843837788,0.06,184.37,184.36,59.61627464]
[1755843838997,0.06,184.41,184.37,13.87991715]
[1755843839179,0.06,184.41,184.4,16.6519515]
[1755843839493,0.06,184.41,184.4,58.6319515]
[1755843839678,0.06,184.41,184.4,55.57559401]
[1755843839878,0.06,184.41,184.4,58.6319515]
[1755843840303,0.06,184.41,184.4,55.57559401]
[1755843840697,0.06,184.41,184.4,61.28291064]
[1755843840909,0.06,184.41,184.4,64.33926813]
[1755843841270,3.68635749,184.41,184.4,13.59559401]
[1755843842209,0.63,184.41,184.4,13.59559401]
[1755843842505,5.40594666,184.41,184.4,13.59559401]
[1755843842875,5.40594666,184.41,184.4,17.62858663]
[1755843846005,21.71516966,184.41,184.4,17.62858663]
[1755843847275,5.40594666,184.41,184.4,17.62858663]
[1755843847575,0.63,184.41,184.4,17.6313013]
[1755843848009,4.83594666,184.41,184.4,17.6313013]
[1755843848188,0.06,184.41,184.4,17.6313013]
[1755843848396,4.83594666,184.41,184.4,17.6313013]
[1755843849299,26.06,184.41,184.4,17.6313013]
[1755843849503,30.83594666,184.41,184.4,17.6313013]
[1755843849885,26.06,184.41,184.4,17.6313013]
[1755843850084,30.83594666,184.41,184.4,17.6313013]
[1755843850611,26.06,184.41,184.4,18.31049858]
[1755843850782,26.06,184.41,184.4,17.63049858]
[1755843851400,26.06,184.41,184.4,18.31049858]
[1755843851594,0.06,184.41,184.4,23.37076838]
[1755843851792,0.06,184.41,184.4,18.59482172]
[1755843851991,0.06,184.41,184.4,23.37076838]
[1755843853300,0.06,184.41,184.4,19.33586381]
[1755843853490,0.06,184.41,184.4,14.55991715]
[1755843853690,0.06,184.41,184.4,13.87991715]
[1755843854426,0.06,184.41,184.4,17.91290743]
[1755843854714,0.06,184.41,184.4,59.60858429]
[1755843854894,0.06,184.41,184.4,65.34885409]
[1755843855409,0.06,184.41,184.4,61.31586381]
[1755843856208,4.77594666,184.43,184.4,13.59559401]
[1755843856405,0.57,184.43,184.41,13.59559401]
[1755843856707,0.57,184.43,184.42,17.62802015]
[1755843856892,5.34594666,184.43,184.42,17.62802015]
[1755843857097,0.57,184.43,184.42,17.62802015]
[1755843857299,5.34594666,184.43,184.42,13.59559401]
[1755843857691,42.936563,184.45,184.43,13.59559401]
[1755843857907,5.34594666,184.44,184.43,13.59559401]
[1755843858209,42.366563,184.45,184.4,42.04]
[1755843858210,42.366563,184.45,184.41,13.59559401]
[1755843858411,42.366563,184.45,184.41,14.31559401]
[1755843858617,42.366563,184.45,184.41,19.01826403]
[1755843858913,30.83594666,184.45,184.42,0.72]
[1755843859118,4.83594666,184.45,184.42,0.72]
[1755843859619,0.06,184.45,184.43,0.72]
[1755843859800,0.06,184.45,184.43,13.59559401]
[1755843859801,5.40594666,184.45,184.43,13.59559401]
[1755843860001,4.83594666,184.45,184.43,13.59559401]
[1755843860185,0.06,184.45,184.43,13.59559401]
[1755843860384,4.77594666,184.44,184.43,13.59559401]
[1755843860885,0.06,184.45,184.43,13.59559401]
[1755843861298,4.83594666,184.45,184.43,13.59559401]
[1755843861913,0.06,184.45,184.43,13.59559401]
[1755843862096,4.83594666,184.45,184.43,13.59559401]
[1755843862292,0.06,184.45,184.43,13.59559401]
[1755843862623,4.77594666,184.44,184.43,13.59559401]
[1755843863487,4.83594666,184.45,184.43,13.59559401]
[1755843863691,9.61189266,184.45,184.43,13.59559401]
[1755843864110,4.77594666,184.44,184.43,13.59559401]
[1755843864740,4.87594666,184.44,184.43,13.59559401]
[1755843864900,4.87594666,184.44,184.43,4.03375167]
[1755843865415,0.1,184.44,184.43,4.03375167]
[1755843865722,4.77594666,184.44,184.43,4.03375167]
[1755843865901,30.835946,184.45,184.43,4.03375167]
[1755843866101,30.835946,184.45,184.44,17.63023574]
[1755843866306,35.61189266,184.45,184.44,17.63023574]
[1755843866912,4.835946,184.45,184.44,17.63023574]
[1755843867096,4.835946,184.45,184.44,18.35023574]
[1755843867421,9.61189266,184.45,184.44,17.63023574]
[1755843867619,4.83594666,184.45,184.44,17.63023574]
[1755843867918,4.83594666,184.45,184.44,17.62593127]
[1755843868103,26.06,184.45,184.44,18.34593127]
[1755843868306,0.1,184.48,184.45,13.59559401]
[1755843868532,0.1,184.48,184.47,13.59559401]
[1755843868737,0.1,184.48,184.47,17.62440595]
[1755843869044,0.1,184.48,184.47,18.34440595]
[1755843871364,0.1,184.48,184.47,17.62440595]
[1755843871828,30.87594666,184.48,184.47,17.62440595]
[1755843872027,31.03594666,184.48,184.47,17.62440595]
[1755843872267,42.403019,184.48,184.47,17.62440595]
[1755843872540,47.17896566,184.48,184.47,17.62440595]
[1755843872917,47.17896566,184.48,184.45,13.59559401]
[1755843873134,4.77594666,184.46,184.45,13.59559401]
[1755843873348,4.77594666,184.46,184.44,13.59559401]
[1755843874058,30.93594666,184.45,184.41,13.59559401]
[1755843874261,4.77594666,184.42,184.41,13.59559401]
[1755843874962,42.466563,184.45,184.41,13.59559401]
[1755843875137,4.77594666,184.42,184.41,13.59559401]
[1755843875953,4.77594666,184.43,184.41,13.59559401]
[1755843876171,4.77594666,184.43,184.41,14.31559401]
[1755843876639,42.306563,184.45,184.41,14.31559401]
[1755843876962,4.77594666,184.43,184.41,14.31559401]
[1755843877266,42.466563,184.45,184.41,13.59559401]
[1755843877470,4.77594666,184.43,184.41,13.59559401]
[1755843878266,30.77594666,184.42,184.41,13.59559401]
[1755843878466,30.93594666,184.42,184.39,13.62559401]
[1755843878673,4.77594666,184.4,184.39,13.62559401]
[1755843878970,4.77594666,184.41,184.39,0.75]
[1755843880168,4.77594666,184.4,184.39,0.75]
[1755843880475,4.77594666,184.4,184.39,0.03]
[1755843880679,30.93594666,184.4,184.39,0.03]
[1755843880888,47.24605666,184.4,184.39,0.03]
[1755843881784,89.72605666,184.4,184.39,0.03]
[1755843881989,95.14905015,184.4,184.39,0.03]
[1755843882844,89.72605666,184.4,184.39,0.03]
[1755843883481,95.14905015,184.4,184.39,0.03]
[1755843883703,52.66905015,184.4,184.39,0.03]
[1755843883900,95.14905015,184.4,184.39,0.03]
[1755843886112,84.77011,184.4,184.39,0.03]
[1755843886409,89.52605666,184.4,184.39,0.03]
[1755843888888,90.15605666,184.4,184.39,0.03]
[1755843889103,53.13905015,184.4,184.39,0.03]
[1755843889302,95.57905015,184.4,184.37,0.03]
[1755843889508,30.77594666,184.38,184.37,0.03]
[1755843889807,73.21594666,184.38,184.37,0.03]
[1755843890193,73.84594666,184.38,184.37,0.03]
[1755843890391,79.26952839,184.38,184.37,0.03]
[1755843890908,81.72936053,184.38,184.37,0.03]
[1755843891109,0.28432314,184.37,184.36,0.03]
[1755843891313,5.6902698,184.37,184.36,0.03]
[1755843892110,5.40594666,184.37,184.36,0.03]
[1755843892315,7.58169266,184.37,184.36,0.03]
[1755843892612,13.00556856,184.37,184.36,0.03]
[1755843893412,55.42556856,184.37,184.36,0.03]
[1755843893828,55.7098917,184.37,184.36,0.03]
[1755843894005,55.7098917,184.37,184.32,0.03]
[1755843894006,35.55189332,184.35,184.32,0.03]
[1755843894325,77.99189332,184.34,184.32,0.03]
[1755843894504,9.55189332,184.33,184.32,0.03]
[1755843894706,15.60694621,184.33,184.32,0.03]
[1755843900327,29.45390158,184.33,184.28,0.03]
[1755843900522,30.77594666,184.29,184.28,0.03]
[1755843900731,73.17594666,184.29,184.28,0.03]
[1755843900933,79.51650019,184.29,184.26,0.03]
[1755843901119,31.0602698,184.27,184.26,0.03]
[1755843901342,47.4802698,184.27,184.26,0.03]
[1755843901641,52.47113661,184.27,184.26,0.03]
[1755843901805,54.64818461,184.27,184.26,0.03]
[1755843903046,60.07500395,184.27,184.26,0.03]
[1755843903914,59.44500395,184.27,184.26,0.03]
[1755843904121,60.07500395,184.27,184.26,0.03]
[1755843904920,7.45223795,184.27,184.26,0.03]
[1755843905222,11.59818461,184.27,184.26,0.03]
[1755843905426,53.99818461,184.27,184.26,0.03]
[1755843905740,54.62818461,184.27,184.26,0.03]
[1755843906952,59.42500395,184.27,184.26,0.03]
[1755843907749,53.69386147,184.27,184.26,0.03]
[1755843908449,11.31386147,184.27,184.26,0.03]
[1755843908609,53.67386147,184.27,184.26,0.03]
[1755843908814,54.58818461,184.27,184.26,0.03]
[1755843909141,53.95818461,184.27,184.26,0.03]
[1755843909648,54.58818461,184.27,184.26,0.03]
[1755843910644,53.95818461,184.27,184.26,0.03]
[1755843910827,53.67386147,184.27,184.26,0.03]
[1755843912230,54.30386147,184.27,184.26,0.03]
[1755843912432,53.67386147,184.27,184.26,0.03]
[1755843912722,54.30386147,184.27,184.26,0.03]
[1755843913530,11.31386147,184.27,184.26,0.03]
[1755843913733,53.63386147,184.27,184.26,0.03]
[1755843913947,11.31386147,184.27,184.26,0.03]
[1755843914154,53.63386147,184.27,184.26,0.03]
[1755843914448,11.31386147,184.27,184.26,0.74]
[1755843914632,6.53791481,184.27,184.26,0.74]
[1755843915852,2.177048,184.27,184.26,0.74]
[1755843916016,11.36763753,184.27,184.26,0.74]
[1755843916339,49.27299466,184.27,184.26,0.74]
[1755843916533,44.497048,184.27,184.26,0.74]
[1755843917728,49.27299466,184.27,184.26,0.74]
[1755843918442,6.95299466,184.27,184.26,0.74]
[1755843918742,44.477048,184.27,184.26,0.03]
[1755843918942,49.25299466,184.27,184.26,0.03]
[1755843919331,49.25299466,184.27,184.26,0.75]
[1755843919548,44.477048,184.27,184.26,0.75]
[1755843919748,44.477048,184.27,184.26,14.34559401]
[1755843919749,2.177048,184.27,184.26,14.34559401]
[1755843921344,4.77594666,184.31,184.27,13.59559401]
[1755843921550,26.0,184.28,184.26,13.62559401]
[1755843921750,26.0,184.28,184.26,18.40154067]
[1755843922230,26.0,184.28,184.27,0.72]
[1755843922735,26.0,184.28,184.26,13.62559401]
[1755843922736,30.77594666,184.28,184.26,13.62559401]
[1755843922936,47.07594666,184.27,184.26,13.62559401]
[1755843923550,47.07594666,184.27,184.26,0.75]
[1755843924660,60.70154066,184.27,184.26,0.75]
[1755843925348,18.40154066,184.27,184.26,0.75]
[1755843925549,60.68154066,184.27,184.26,0.75]
[1755843926420,13.625594,184.27,184.26,0.75]
[1755843926624,60.68154066,184.27,184.26,0.75]
[1755843927753,60.68154066,184.27,184.26,0.03]
[1755843928123,60.68154066,184.27,184.26,0.75]
[1755843928620,60.66154066,184.27,184.26,0.75]
[1755843929016,61.29154066,184.27,184.26,0.03]
[1755843929241,66.06748732,184.27,184.26,0.03]
[1755843929435,66.35181046,184.27,184.26,0.03]
[1755843929841,61.5758638,184.27,184.26,0.03]
[1755843930045,60.9458638,184.27,184.26,0.03]
[1755843930351,60.66154066,184.27,184.26,0.03]
[1755843934452,18.40154066,184.27,184.26,0.75]
[1755843934658,60.62154066,184.27,184.26,14.34559401]
[1755843936450,55.845594,184.27,184.26,14.34559401]
[1755843937043,55.845594,184.27,184.26,13.62559401]
[1755843939675,55.825594,184.27,184.26,13.62559401]
[1755843940162,56.455594,184.27,184.26,0.03]
[1755843940360,56.73991714,184.27,184.26,0.03]
[1755843940734,60.39757798,184.27,184.26,0.03]
[1755843945354,64.46196535,184.27,184.26,0.03]
[1755843948159,64.44196535,184.27,184.26,0.03]
[1755843948480,132.65432314,184.25,184.24,0.03]
[1755843948660,178.49198398,184.25,184.24,0.03]
[1755843948860,179.12198398,184.25,184.24,0.03]
[1755843949271,182.15466298,184.25,184.24,0.03]
[1755843949778,196.2164481,184.25,184.24,0.03]
[1755843950083,10.28432314,184.24,184.23,0.03]
[1755843950260,14.57198398,184.24,184.23,0.03]
[1755843950453,60.81459133,184.24,184.23,0.03]
[1755843950866,60.81211711,184.24,184.23,0.03]
[1755843951279,23.2025075,184.24,184.23,0.03]
[1755843951461,60.81211711,184.24,184.23,0.03]
[1755843952082,50.81211711,184.24,184.23,0.03]
[1755843952383,60.81211711,184.24,184.23,0.03]
[1755843952774,62.99011411,184.24,184.23,0.03]
[1755843953657,6.11998098,184.24,184.23,0.03]
[1755843953863,58.27998098,184.24,184.23,0.03]
[1755843954275,58.90998098,184.24,184.23,0.03]
[1755843954580,16.74998098,184.24,184.23,0.03]
[1755843954759,58.90998098,184.24,184.23,0.03]
[1755843955388,48.90998098,184.24,184.23,0.03]
[1755843955688,58.90998098,184.24,184.23,0.03]
[1755843956583,48.90998098,184.24,184.23,0.03]
[1755843956788,62.95988734,184.24,184.23,0.03]
[1755843957285,58.27998098,184.24,184.23,0.03]
[1755843957758,16.11998098,184.24,184.23,0.03]
[1755843958059,58.25998098,184.24,184.23,0.03]
[1755843958762,48.25998098,184.24,184.23,0.03]
[1755843959070,58.25998098,184.24,184.23,0.03]
[1755843959274,16.74998098,184.24,184.23,0.03]
[1755843959465,58.90998098,184.24,184.23,0.03]
[1755843959796,58.27998098,184.24,184.23,0.03]
[1755843960091,16.74998098,184.24,184.23,0.03]
[1755843960292,58.88998098,184.24,184.23,0.03]
[1755843962190,129.53029314,184.19,184.18,0.2]
[1755843962366,42.40432314,184.19,184.18,0.2]
[1755843962687,42.40432314,184.19,184.18,0.91]
[1755843962877,58.73929914,184.19,184.18,0.91]
[1755843964102,58.73929914,184.19,184.18,0.2]
[1755843965372,58.73929914,184.19,184.18,3.03440109]
[1755843968200,58.83929914,184.19,184.18,3.03440109]
[1755843968380,25.99717683,184.19,184.16,27.1257355]
[1755843968788,25.89717683,184.19,184.16,27.59659237]
[1755843968982,0.1,184.18,184.16,27.59659237]
[1755843969180,25.95543863,184.17,184.16,0.03]
[1755843969399,42.14,184.17,184.16,0.03]
[1755843969782,0.63,184.2,184.16,27.59659237]
[1755843970092,55.51,184.25,184.16,27.59659237]
[1755843970093,9.57823498,184.17,184.16,0.03]
[1755843970299,51.71823498,184.17,184.16,0.03]
[1755843970485,9.86255812,184.17,184.16,0.03]
[1755843970691,9.57823498,184.17,184.16,0.74]
[1755843970895,42.14,184.17,184.16,0.74]
[1755843971091,46.32207643,184.17,184.16,0.74]
[1755843971693,46.32207643,184.17,184.16,3.57432103]
[1755843971912,0.28432314,184.2,184.16,3.57432103]
[1755843971913,42.42432314,184.18,184.17,8.22970422]
[1755843972215,0.06,184.23,184.17,8.93970422]
[1755843972515,16.336755,184.18,184.17,8.22970422]
[1755843972805,16.336755,184.18,184.17,21.82529823]
[1755843973008,16.336755,184.18,184.17,22.53529823]
[1755843973210,5.52705746,184.18,184.17,14.30559401]
[1755843973508,42.14,184.22,184.17,14.30559401]
[1755843973678,26.0,184.19,184.18,0.71]
[1755843974677,26.0,184.19,184.18,0.161]
[1755843977580,132.4,184.21,184.18,13.75659401]
[1755843977778,132.4,184.21,184.19,0.66]
[1755843977997,145.995594,184.21,184.19,0.66]
[1755843979495,145.995594,184.21,184.2,13.59559401]
[1755843979694,145.995594,184.21,184.2,14.25559401]
[1755843979695,132.4,184.21,184.2,14.25559401]
[1755843981019,0.06,184.23,184.22,13.59559401]
[1755843981224,26.06,184.23,184.22,13.59559401]
[1755843981393,26.06,184.23,184.22,14.25559401]
[1755843982224,0.06,184.23,184.22,24.25559401]
[1755843982403,26.06,184.23,184.22,24.25559401]
[1755843985999,0.06,184.23,184.22,24.25559401]
[1755843986408,26.06,184.23,184.22,24.25559401]
[1755843988729,26.06,184.23,184.22,14.25559401]
[1755843988939,26.06,184.23,184.22,24.25559401]
[1755843989437,0.06,184.23,184.22,24.25559401]
[1755844001659,0.06,184.23,184.22,66.35559401]
[1755844003155,0.06,184.23,184.22,23.59559401]
[1755844003342,0.06,184.23,184.22,65.69559401]
[1755844003940,0.06,184.23,184.22,23.59559401]
[1755844004139,0.74,184.23,184.22,13.59559401]
[1755844004454,0.74,184.23,184.2,10.0]
[1755844004455,2.976811,184.23,184.2,10.0]
[1755844004752,0.68,184.22,184.21,55.69559401]
[1755844004952,0.68,184.22,184.21,42.1]
[1755844005157,17.013197,184.22,184.21,42.1]
[1755844005929,26.0,184.19,184.18,13.62559401]
[1755844006130,26.68,184.19,184.18,55.72559401]